[Event "Titled Tuesday Blitz January 10 Early 2023"]
[White "Goldin, Roman"]
[Black "Aspire_ie"]
[WhiteFideId "2803860"]
[WhiteElo "2322"]
[BlackElo "2307"]
[Result "1-0"]
[Round "08"]
[TimeControl "180+2"]
[Date "2023.01.10"]
[WhiteClock "0:00:14"]
[BlackClock "0:00:02"]

1. Nf3 {[%clk 0:02:58]}  d6 {[%clk 0:02:59]} 2. d4 {[%clk 0:02:56]}  Nf6 {[%clk 0:02:58]} 3. g3 {[%clk 0:02:55]}  g6 {[%clk 0:02:58]} 4. Bg2 {[%clk 0:02:55]}  Bg7 {[%clk 0:02:59]} 5. O-O {[%clk 0:02:56]}  O-O {[%clk 0:02:59]} 6. Nc3 {[%clk 0:02:56]}  d5 {[%clk 0:02:57]} 7. Bg5 {[%clk 0:02:54]}  Ne4 {[%clk 0:02:44]} 8. Bf4 {[%clk 0:02:40]}  Nxc3 {[%clk 0:02:41]} 9. bxc3 {[%clk 0:02:40]}  Nd7 {[%clk 0:02:36]} 10. Qd2 {[%clk 0:02:40]}  Re8 {[%clk 0:02:26]} 11. Bh6 {[%clk 0:02:32]}  Bh8 {[%clk 0:02:26]} 12. h4 {[%clk 0:02:30]}  Nb6 {[%clk 0:02:24]} 13. Ne5 {[%clk 0:02:26]}  f6 {[%clk 0:02:01]} 14. Nd3 {[%clk 0:02:21]}  e5 {[%clk 0:01:54]} 15. dxe5 {[%clk 0:02:11]}  fxe5 {[%clk 0:01:55]} 16. e4 {[%clk 0:02:08]}  c6 {[%clk 0:01:53]} 17. Qe2 {[%clk 0:01:59]}  Qe7 {[%clk 0:01:45]} 18. a4 {[%clk 0:01:53]}  a5 {[%clk 0:01:25]} 19. Be3 {[%clk 0:01:41]}  d4 {[%clk 0:01:21]} 20. Bg5 {[%clk 0:01:33]}  Bf6 {[%clk 0:01:17]} 21. Bxf6 {[%clk 0:01:25]}  Qxf6 {[%clk 0:01:18]} 22. cxd4 {[%clk 0:01:24]}  exd4 {[%clk 0:01:19]} 23. e5 {[%clk 0:01:23]}  Bf5 {[%clk 0:01:13]} 24. f4 {[%clk 0:01:05]}  Rad8 {[%clk 0:01:03]} 25. Rfb1 {[%clk 0:00:55]}  Nc4 {[%clk 0:00:50]} 26. Rxb7 {[%clk 0:00:54]}  Qe6 {[%clk 0:00:50]} 27. Nc5 {[%clk 0:00:49]}  d3 {[%clk 0:00:46]} 28. cxd3 {[%clk 0:00:34]}  Bxd3 {[%clk 0:00:33]} 29. Nxd3 {[%clk 0:00:27]}  Qc8 {[%clk 0:00:32]} 30. Rab1 {[%clk 0:00:22]}  Rd7 {[%clk 0:00:31]} 31. Nc5 {[%clk 0:00:21]}  Rxb7 {[%clk 0:00:25]} 32. Rxb7 {[%clk 0:00:16]}  Na3 {[%clk 0:00:02]} 33. Qa2+ {[%clk 0:00:16]}  Kh8 {[%clk 0:00:02]} 34. Qf7 {[%clk 0:00:14]} 1-0


[Site "https://www.chess.com"]

[Event "Titled Tuesday Blitz January 10 Early 2023"]
[White "Real_taiatai"]
[Black "Novikov, Evgenij"]
[BlackFideId "4125380"]
[WhiteElo "2318"]
[BlackElo "2276"]
[Result "0-1"]
[Round "08"]
[TimeControl "180+2"]
[Date "2023.01.10"]
[WhiteClock "0:00:17"]
[BlackClock "0:00:21"]

1. d3 {[%clk 0:02:58]}  d5 {[%clk 0:02:58]} 2. Nf3 {[%clk 0:02:58]}  g6 {[%clk 0:02:58]} 3. g3 {[%clk 0:02:58]}  Bg7 {[%clk 0:02:58]} 4. Bg2 {[%clk 0:02:59]}  Nf6 {[%clk 0:02:57]} 5. O-O {[%clk 0:02:59]}  O-O {[%clk 0:02:58]} 6. Nc3 {[%clk 0:02:53]}  d4 {[%clk 0:02:57]} 7. Ne4 {[%clk 0:02:50]}  Nc6 {[%clk 0:02:54]} 8. Nxf6+ {[%clk 0:02:43]}  exf6 {[%clk 0:02:55]} 9. c4 {[%clk 0:02:42]}  a5 {[%clk 0:02:50]} 10. Bd2 {[%clk 0:02:38]}  Re8 {[%clk 0:02:44]} 11. Re1 {[%clk 0:02:33]}  f5 {[%clk 0:02:43]} 12. b3 {[%clk 0:02:30]}  Qe7 {[%clk 0:02:28]} 13. a3 {[%clk 0:02:30]}  Bd7 {[%clk 0:02:26]} 14. Qc1 {[%clk 0:02:25]}  h5 {[%clk 0:02:25]} 15. Rb1 {[%clk 0:02:23]}  Ra7 {[%clk 0:02:16]} 16. b4 {[%clk 0:02:23]}  axb4 {[%clk 0:02:16]} 17. axb4 {[%clk 0:02:24]}  b6 {[%clk 0:02:13]} 18. b5 {[%clk 0:02:19]}  Nd8 {[%clk 0:02:12]} 19. Bb4 {[%clk 0:02:15]}  Qf6 {[%clk 0:02:06]} 20. Ra1 {[%clk 0:02:14]}  Rxa1 {[%clk 0:02:03]} 21. Qxa1 {[%clk 0:02:15]}  f4 {[%clk 0:02:01]} 22. Bd2 {[%clk 0:02:04]}  g5 {[%clk 0:01:47]} 23. Bc1 {[%clk 0:02:02]}  Ne6 {[%clk 0:01:40]} 24. Nd2 {[%clk 0:01:59]}  Nc5 {[%clk 0:01:34]} 25. Ne4 {[%clk 0:01:49]}  Nxe4 {[%clk 0:01:34]} 26. Bxe4 {[%clk 0:01:49]}  h4 {[%clk 0:01:25]} 27. Qa7 {[%clk 0:01:46]}  fxg3 {[%clk 0:01:17]} 28. fxg3 {[%clk 0:01:44]}  hxg3 {[%clk 0:01:17]} 29. hxg3 {[%clk 0:01:44]}  Qd6 {[%clk 0:01:18]} 30. Kg2 {[%clk 0:01:42]}  Be5 {[%clk 0:01:11]} 31. Bxg5 {[%clk 0:01:37]}  Bxg3 {[%clk 0:01:09]} 32. Rg1 {[%clk 0:01:29]}  Re5 {[%clk 0:00:55]} 33. Bd2 {[%clk 0:01:20]}  Rh5 {[%clk 0:00:48]} 34. Qa8+ {[%clk 0:01:16]}  Kg7 {[%clk 0:00:46]} 35. Kf3 {[%clk 0:00:34]}  Rh3 {[%clk 0:00:37]} 36. Qd5 {[%clk 0:00:24]}  Qf6+ {[%clk 0:00:36]} 37. Bf5 {[%clk 0:00:17]}  Bxf5 {[%clk 0:00:35]} 38. Rxg3+ {[%clk 0:00:18]}  Bg4+ {[%clk 0:00:21]} 39. Kxg4 {[%clk 0:00:17]}  Rh4# {[%clk 0:00:21]} 0-1


[Site "https://www.chess.com"]

[Event "Titled Tuesday Blitz January 10 Early 2023"]
[White "Boder, Jan"]
[Black "Campbell, Charles"]
[WhiteFideId "16243226"]
[BlackFideId "8500436"]
[WhiteElo "2294"]
[BlackElo "2179"]
[Result "0-1"]
[Round "08"]
[TimeControl "180+2"]
[Date "2023.01.10"]
[WhiteClock "0:00:14"]
[BlackClock "0:00:18"]

1. b3 {[%clk 0:02:59]}  f5 {[%clk 0:02:43]} 2. Bb2 {[%clk 0:03:00]}  Nf6 {[%clk 0:02:43]} 3. Bxf6 {[%clk 0:02:57]}  exf6 {[%clk 0:02:42]} 4. c4 {[%clk 0:02:58]}  b6 {[%clk 0:02:36]} 5. g3 {[%clk 0:02:57]}  Bb7 {[%clk 0:02:36]} 6. Nf3 {[%clk 0:02:57]}  g6 {[%clk 0:02:33]} 7. Bg2 {[%clk 0:02:57]}  Bg7 {[%clk 0:02:32]} 8. Nc3 {[%clk 0:02:56]}  O-O {[%clk 0:02:31]} 9. O-O {[%clk 0:02:56]}  d6 {[%clk 0:02:31]} 10. d4 {[%clk 0:02:57]}  c5 {[%clk 0:02:28]} 11. e3 {[%clk 0:02:57]}  Nc6 {[%clk 0:02:26]} 12. Qd2 {[%clk 0:02:52]}  Ne7 {[%clk 0:02:18]} 13. Rad1 {[%clk 0:02:51]}  a6 {[%clk 0:02:18]} 14. d5 {[%clk 0:02:46]}  Re8 {[%clk 0:02:15]} 15. Ne2 {[%clk 0:02:46]}  Bc8 {[%clk 0:02:13]} 16. Ne1 {[%clk 0:02:41]}  b5 {[%clk 0:02:09]} 17. Nd3 {[%clk 0:02:39]}  Rb8 {[%clk 0:02:07]} 18. Ndf4 {[%clk 0:02:34]}  Bd7 {[%clk 0:02:04]} 19. Ne6 {[%clk 0:02:28]}  Qc8 {[%clk 0:02:04]} 20. N2f4 {[%clk 0:02:25]}  Bh6 {[%clk 0:01:55]} 21. Qb2 {[%clk 0:02:12]}  Kf7 {[%clk 0:01:53]} 22. Qc3 {[%clk 0:02:07]}  Bxf4 {[%clk 0:01:44]} 23. exf4 {[%clk 0:02:02]}  Bxe6 {[%clk 0:01:41]} 24. dxe6+ {[%clk 0:02:02]}  Qxe6 {[%clk 0:01:41]} 25. Rfe1 {[%clk 0:02:02]}  Qd7 {[%clk 0:01:41]} 26. Rd2 {[%clk 0:01:32]}  Nc6 {[%clk 0:01:37]} 27. Bd5+ {[%clk 0:01:24]}  Kg7 {[%clk 0:01:35]} 28. Rxe8 {[%clk 0:01:18]}  Rxe8 {[%clk 0:01:34]} 29. Bxc6 {[%clk 0:01:18]}  Qxc6 {[%clk 0:01:33]} 30. Rd5 {[%clk 0:01:18]}  Re6 {[%clk 0:01:28]} 31. Qd3 {[%clk 0:01:18]}  Kf7 {[%clk 0:01:27]} 32. h4 {[%clk 0:01:16]}  Ke7 {[%clk 0:01:26]} 33. h5 {[%clk 0:01:15]}  bxc4 {[%clk 0:01:23]} 34. bxc4 {[%clk 0:01:14]}  Qa4 {[%clk 0:01:22]} 35. Qb3 {[%clk 0:00:47]}  Qxb3 {[%clk 0:01:17]} 36. axb3 {[%clk 0:00:48]}  Re2 {[%clk 0:01:13]} 37. Kf1 {[%clk 0:00:48]}  Rb2 {[%clk 0:01:11]} 38. Rd3 {[%clk 0:00:49]}  Kd7 {[%clk 0:01:07]} 39. Ke1 {[%clk 0:00:41]}  Kc6 {[%clk 0:01:00]} 40. Re3 {[%clk 0:00:40]}  Kd7 {[%clk 0:01:00]} 41. Rd3 {[%clk 0:00:40]}  a5 {[%clk 0:00:59]} 42. Rf3 {[%clk 0:00:39]}  Ra2 {[%clk 0:00:53]} 43. Rc3 {[%clk 0:00:28]}  Ra3 {[%clk 0:00:52]} 44. Re3 {[%clk 0:00:28]}  a4 {[%clk 0:00:50]} 45. bxa4 {[%clk 0:00:28]}  Rxa4 {[%clk 0:00:50]} 46. Rc3 {[%clk 0:00:29]}  Kc6 {[%clk 0:00:50]} 47. Ke2 {[%clk 0:00:29]}  d5 {[%clk 0:00:50]} 48. cxd5+ {[%clk 0:00:30]}  Kxd5 {[%clk 0:00:50]} 49. Rd3+ {[%clk 0:00:31]}  Rd4 {[%clk 0:00:50]} 50. Ra3 {[%clk 0:00:31]}  Re4+ {[%clk 0:00:41]} 51. Kf3 {[%clk 0:00:29]}  Re7 {[%clk 0:00:40]} 52. Ra6 {[%clk 0:00:29]}  c4 {[%clk 0:00:38]} 53. Ra8 {[%clk 0:00:22]}  Rc7 {[%clk 0:00:37]} 54. Ra2 {[%clk 0:00:20]}  c3 {[%clk 0:00:37]} 55. Rc2 {[%clk 0:00:21]}  Kd4 {[%clk 0:00:37]} 56. Ke2 {[%clk 0:00:21]}  Rb7 {[%clk 0:00:34]} 57. Rc1 {[%clk 0:00:21]}  Rb2+ {[%clk 0:00:33]} 58. Ke1 {[%clk 0:00:20]}  Kd3 {[%clk 0:00:33]} 59. Rd1+ {[%clk 0:00:19]}  Rd2 {[%clk 0:00:33]} 60. Ra1 {[%clk 0:00:20]}  Rb2 {[%clk 0:00:29]} 61. Rd1+ {[%clk 0:00:20]}  Kc4 {[%clk 0:00:29]} 62. hxg6 {[%clk 0:00:19]}  hxg6 {[%clk 0:00:29]} 63. Rc1 {[%clk 0:00:19]}  Kb3 {[%clk 0:00:27]} 64. Rd1 {[%clk 0:00:18]}  c2 {[%clk 0:00:27]} 65. Rc1 {[%clk 0:00:18]}  Kc3 {[%clk 0:00:26]} 66. Ke2 {[%clk 0:00:13]}  Rb1 {[%clk 0:00:25]} 67. Rxc2+ {[%clk 0:00:10]}  Kxc2 {[%clk 0:00:25]} 68. Ke3 {[%clk 0:00:11]}  Rb4 {[%clk 0:00:22]} 69. f3 {[%clk 0:00:09]}  Kc3 {[%clk 0:00:22]} 70. g4 {[%clk 0:00:10]}  fxg4 {[%clk 0:00:22]} 71. fxg4 {[%clk 0:00:11]}  g5 {[%clk 0:00:21]} 72. fxg5 {[%clk 0:00:09]}  fxg5 {[%clk 0:00:21]} 73. Kf3 {[%clk 0:00:10]}  Kd3 {[%clk 0:00:21]} 74. Kg3 {[%clk 0:00:11]}  Ke3 {[%clk 0:00:21]} 75. Kh3 {[%clk 0:00:12]}  Kf3 {[%clk 0:00:21]} 76. Kh2 {[%clk 0:00:12]}  Kxg4 {[%clk 0:00:19]} 77. Kg2 {[%clk 0:00:10]}  Rb2+ {[%clk 0:00:19]} 78. Kf1 {[%clk 0:00:11]}  Kf3 {[%clk 0:00:18]} 79. Ke1 {[%clk 0:00:12]}  g4 {[%clk 0:00:18]} 80. Kd1 {[%clk 0:00:13]}  g3 {[%clk 0:00:19]} 81. Kc1 {[%clk 0:00:14]}  Re2 {[%clk 0:00:19]} 82. Kd1 {[%clk 0:00:13]}  g2 {[%clk 0:00:19]} 83. Kc1 {[%clk 0:00:14]}  g1=R# {[%clk 0:00:18]} 0-1


[Site "https://www.chess.com"]

[Event "Titled Tuesday Blitz January 10 Early 2023"]
[White "Alfaro, William"]
[Black "Sreyas Payyappat"]
[WhiteFideId "6100457"]
[BlackFideId "46674969"]
[WhiteElo "2134"]
[BlackElo "2076"]
[Result "1-0"]
[Round "08"]
[TimeControl "180+2"]
[Date "2023.01.10"]
[WhiteClock "0:00:23"]
[BlackClock "0:00:12"]

1. Nf3 {[%clk 0:03:00]}  Nf6 {[%clk 0:02:57]} 2. g3 {[%clk 0:03:00]}  c5 {[%clk 0:02:54]} 3. Bg2 {[%clk 0:02:59]}  Nc6 {[%clk 0:02:55]} 4. d3 {[%clk 0:02:58]}  d5 {[%clk 0:02:54]} 5. O-O {[%clk 0:02:58]}  g6 {[%clk 0:02:53]} 6. Nbd2 {[%clk 0:02:56]}  Bg7 {[%clk 0:02:53]} 7. e4 {[%clk 0:02:56]}  dxe4 {[%clk 0:02:54]} 8. Nxe4 {[%clk 0:02:55]}  Nxe4 {[%clk 0:02:53]} 9. dxe4 {[%clk 0:02:56]}  Qxd1 {[%clk 0:02:51]} 10. Rxd1 {[%clk 0:02:54]}  Bg4 {[%clk 0:02:52]} 11. Re1 {[%clk 0:02:35]}  O-O-O {[%clk 0:02:39]} 12. c3 {[%clk 0:02:34]}  Bxf3 {[%clk 0:02:36]} 13. Bxf3 {[%clk 0:02:32]}  Ne5 {[%clk 0:02:36]} 14. Bg2 {[%clk 0:02:29]}  Nd3 {[%clk 0:02:35]} 15. Rd1 {[%clk 0:02:26]}  c4 {[%clk 0:02:34]} 16. Bf1 {[%clk 0:02:25]}  Rd6 {[%clk 0:02:32]} 17. b3 {[%clk 0:02:08]}  Bxc3 {[%clk 0:02:26]} 18. Rb1 {[%clk 0:02:08]}  Bd4 {[%clk 0:02:16]} 19. Bxd3 {[%clk 0:02:01]}  cxd3 {[%clk 0:02:17]} 20. Bf4 {[%clk 0:02:00]}  e5 {[%clk 0:02:15]} 21. Bg5 {[%clk 0:01:58]}  f6 {[%clk 0:02:13]} 22. Bd2 {[%clk 0:01:56]}  Rhd8 {[%clk 0:02:11]} 23. Rbc1+ {[%clk 0:01:56]}  Kb8 {[%clk 0:02:11]} 24. Rc4 {[%clk 0:01:56]}  b5 {[%clk 0:02:09]} 25. Rcc1 {[%clk 0:01:52]}  Bb6 {[%clk 0:02:08]} 26. Kf1 {[%clk 0:01:46]}  Rd4 {[%clk 0:02:07]} 27. f3 {[%clk 0:01:47]}  Kb7 {[%clk 0:02:04]} 28. Be3 {[%clk 0:01:35]}  R4d6 {[%clk 0:01:59]} 29. Bxb6 {[%clk 0:01:34]}  Kxb6 {[%clk 0:02:00]} 30. Kf2 {[%clk 0:01:33]}  f5 {[%clk 0:01:53]} 31. exf5 {[%clk 0:01:30]}  gxf5 {[%clk 0:01:54]} 32. Rc3 {[%clk 0:01:30]}  b4 {[%clk 0:01:52]} 33. Rc4 {[%clk 0:01:29]}  a5 {[%clk 0:01:53]} 34. Ke3 {[%clk 0:01:29]}  Kb5 {[%clk 0:01:39]} 35. Rd2 {[%clk 0:01:28]}  R6d7 {[%clk 0:01:35]} 36. Rh4 {[%clk 0:01:26]}  a4 {[%clk 0:01:31]} 37. Rh5 {[%clk 0:01:24]}  Rc8 {[%clk 0:00:51]} 38. Rxf5 {[%clk 0:01:21]}  Rd5 {[%clk 0:00:48]} 39. Ke4 {[%clk 0:01:07]}  Rc2 {[%clk 0:00:19]} 40. Ke3 {[%clk 0:00:54]}  Rxd2 {[%clk 0:00:16]} 41. Kxd2 {[%clk 0:00:53]}  axb3 {[%clk 0:00:16]} 42. axb3 {[%clk 0:00:54]}  Kc5 {[%clk 0:00:17]} 43. Rf8 {[%clk 0:00:50]}  Kd4 {[%clk 0:00:16]} 44. Re8 {[%clk 0:00:49]}  Rd6 {[%clk 0:00:13]} 45. h4 {[%clk 0:00:45]}  Rf6 {[%clk 0:00:07]} 46. Rd8+ {[%clk 0:00:45]}  Kc5 {[%clk 0:00:07]} 47. Rxd3 {[%clk 0:00:43]}  Rg6 {[%clk 0:00:07]} 48. g4 {[%clk 0:00:42]}  Rh6 {[%clk 0:00:07]} 49. h5 {[%clk 0:00:23]}  Ra6 {[%clk 0:00:08]} 50. Ke3 {[%clk 0:00:22]}  Ra1 {[%clk 0:00:07]} 51. Rd8 {[%clk 0:00:20]}  Rb1 {[%clk 0:00:06]} 52. Rc8+ {[%clk 0:00:19]}  Kd6 {[%clk 0:00:06]} 53. Rd8+ {[%clk 0:00:18]}  Ke6 {[%clk 0:00:06]} 54. Rd3 {[%clk 0:00:17]}  Rc1 {[%clk 0:00:06]} 55. Ke4 {[%clk 0:00:16]}  Re1+ {[%clk 0:00:05]} 56. Re3 {[%clk 0:00:17]}  Rd1 {[%clk 0:00:06]} 57. f4 {[%clk 0:00:17]}  Rd4+ {[%clk 0:00:06]} 58. Kf3 {[%clk 0:00:18]}  Rxf4+ {[%clk 0:00:06]} 59. Kg3 {[%clk 0:00:18]}  Kd5 {[%clk 0:00:07]} 60. Rd3+ {[%clk 0:00:18]}  Rd4 {[%clk 0:00:06]} 61. Re3 {[%clk 0:00:18]}  Rd2 {[%clk 0:00:05]} 62. g5 {[%clk 0:00:18]}  Kd4 {[%clk 0:00:05]} 63. Rf3 {[%clk 0:00:17]}  e4 {[%clk 0:00:04]} 64. Rf7 {[%clk 0:00:18]}  Rd1 {[%clk 0:00:04]} 65. Rd7+ {[%clk 0:00:18]}  Kc3 {[%clk 0:00:04]} 66. Rxd1 {[%clk 0:00:19]}  e3 {[%clk 0:00:05]} 67. Re1 {[%clk 0:00:19]}  Kd2 {[%clk 0:00:05]} 68. Rxe3 {[%clk 0:00:18]}  Kxe3 {[%clk 0:00:05]} 69. g6 {[%clk 0:00:19]}  hxg6 {[%clk 0:00:06]} 70. hxg6 {[%clk 0:00:20]}  Kd3 {[%clk 0:00:07]} 71. g7 {[%clk 0:00:21]}  Kc3 {[%clk 0:00:08]} 72. g8=Q {[%clk 0:00:21]}  Kb2 {[%clk 0:00:08]} 73. Qc4 {[%clk 0:00:21]}  Ka3 {[%clk 0:00:09]} 74. Kf3 {[%clk 0:00:21]}  Ka2 {[%clk 0:00:09]} 75. Ke2 {[%clk 0:00:22]}  Ka3 {[%clk 0:00:10]} 76. Kd2 {[%clk 0:00:22]}  Ka2 {[%clk 0:00:11]} 77. Kc2 {[%clk 0:00:22]}  Ka3 {[%clk 0:00:12]} 78. Qa6# {[%clk 0:00:23]} 1-0


[Site "https://www.chess.com"]

[Event "Titled Tuesday Blitz January 10 Early 2023"]
[White "Chernomordik, Pavel"]
[Black "Jenkins, Drake"]
[WhiteFideId "2804530"]
[BlackFideId "2022397"]
[WhiteElo "2150"]
[BlackElo "2130"]
[Result "1-0"]
[Round "08"]
[TimeControl "180+2"]
[Date "2023.01.10"]
[WhiteClock "0:00:16"]
[BlackClock "0:00:01"]

1. e4 {[%clk 0:03:00]}  c5 {[%clk 0:02:59]} 2. Nc3 {[%clk 0:03:00]}  g6 {[%clk 0:03:00]} 3. f4 {[%clk 0:02:55]}  Bg7 {[%clk 0:02:59]} 4. Nf3 {[%clk 0:02:56]}  Nc6 {[%clk 0:02:59]} 5. Bb5 {[%clk 0:02:55]}  Nd4 {[%clk 0:02:57]} 6. Bc4 {[%clk 0:02:49]}  e6 {[%clk 0:02:48]} 7. e5 {[%clk 0:02:48]}  d6 {[%clk 0:02:30]} 8. exd6 {[%clk 0:02:26]}  Qxd6 {[%clk 0:02:24]} 9. d3 {[%clk 0:02:25]}  a6 {[%clk 0:02:19]} 10. Ne4 {[%clk 0:02:19]}  Qc7 {[%clk 0:02:03]} 11. a4 {[%clk 0:02:05]}  Ne7 {[%clk 0:01:56]} 12. c3 {[%clk 0:02:02]}  Nxf3+ {[%clk 0:01:36]} 13. Qxf3 {[%clk 0:02:00]}  O-O {[%clk 0:01:37]} 14. a5 {[%clk 0:01:48]}  Bd7 {[%clk 0:01:18]} 15. Qf2 {[%clk 0:01:43]}  Rfc8 {[%clk 0:01:04]} 16. Be3 {[%clk 0:01:42]}  Nd5 {[%clk 0:01:03]} 17. Bxc5 {[%clk 0:01:31]}  Qxf4 {[%clk 0:00:53]} 18. Qxf4 {[%clk 0:00:53]}  Nxf4 {[%clk 0:00:53]} 19. O-O {[%clk 0:00:52]}  Nd5 {[%clk 0:00:27]} 20. Bf2 {[%clk 0:00:42]}  Bc6 {[%clk 0:00:11]} 21. Rae1 {[%clk 0:00:37]}  Bf8 {[%clk 0:00:04]} 22. Bh4 {[%clk 0:00:29]}  Rab8 {[%clk 0:00:04]} 23. Bg3 {[%clk 0:00:28]}  Ra8 {[%clk 0:00:04]} 24. Nd6 {[%clk 0:00:26]}  Bxd6 {[%clk 0:00:03]} 25. Bxd6 {[%clk 0:00:26]}  b6 {[%clk 0:00:03]} 26. Bxd5 {[%clk 0:00:22]}  Bxd5 {[%clk 0:00:03]} 27. axb6 {[%clk 0:00:22]}  Rd8 {[%clk 0:00:02]} 28. Be5 {[%clk 0:00:18]}  Kf8 {[%clk 0:00:01]} 29. Rf4 {[%clk 0:00:16]} 1-0


[Site "https://www.chess.com"]

[Event "Titled Tuesday Blitz January 10 Early 2023"]
[White "Karabalis, Harilos"]
[Black "Adam, Ernestina"]
[WhiteFideId "4621808"]
[BlackFideId "165883"]
[WhiteElo "2252"]
[BlackElo "2040"]
[Result "1-0"]
[Round "08"]
[TimeControl "180+2"]
[Date "2023.01.10"]
[WhiteClock "0:01:32"]
[BlackClock "0:00:16"]

1. c4 {[%clk 0:02:58]}  Nf6 {[%clk 0:02:59]} 2. Nc3 {[%clk 0:02:57]}  e5 {[%clk 0:02:59]} 3. g3 {[%clk 0:02:57]}  Nc6 {[%clk 0:02:57]} 4. Bg2 {[%clk 0:02:57]}  Bc5 {[%clk 0:02:56]} 5. e3 {[%clk 0:02:57]}  d6 {[%clk 0:02:46]} 6. Nge2 {[%clk 0:02:57]}  Be6 {[%clk 0:02:42]} 7. d4 {[%clk 0:02:57]}  exd4 {[%clk 0:02:40]} 8. exd4 {[%clk 0:02:57]}  Bxc4 {[%clk 0:02:28]} 9. dxc5 {[%clk 0:02:55]}  O-O {[%clk 0:02:27]} 10. cxd6 {[%clk 0:02:52]}  cxd6 {[%clk 0:02:27]} 11. O-O {[%clk 0:02:52]}  Re8 {[%clk 0:02:23]} 12. Re1 {[%clk 0:02:52]}  Nb4 {[%clk 0:02:16]} 13. Nd4 {[%clk 0:02:24]}  Rxe1+ {[%clk 0:02:01]} 14. Qxe1 {[%clk 0:02:23]}  Qb6 {[%clk 0:01:55]} 15. Be3 {[%clk 0:02:21]}  Nd3 {[%clk 0:01:41]} 16. Qd2 {[%clk 0:02:16]}  Ng4 {[%clk 0:01:27]} 17. Nf5 {[%clk 0:02:09]}  Nxe3 {[%clk 0:01:26]} 18. Nxe3 {[%clk 0:02:09]}  Ba6 {[%clk 0:01:25]} 19. b3 {[%clk 0:01:50]}  Qd4 {[%clk 0:01:17]} 20. Rd1 {[%clk 0:01:44]}  Rc8 {[%clk 0:01:13]} 21. Ncd5 {[%clk 0:01:43]}  Kh8 {[%clk 0:01:02]} 22. Bf1 {[%clk 0:01:41]}  Qe5 {[%clk 0:00:29]} 23. Bxd3 {[%clk 0:01:38]}  Bxd3 {[%clk 0:00:28]} 24. Qxd3 {[%clk 0:01:39]}  h6 {[%clk 0:00:26]} 25. Qd4 {[%clk 0:01:35]}  Qh5 {[%clk 0:00:24]} 26. Kg2 {[%clk 0:01:33]}  b6 {[%clk 0:00:16]} 27. Qg4 {[%clk 0:01:33]}  Qe5 {[%clk 0:00:15]} 28. Qxc8+ {[%clk 0:01:32]}  Kh7 {[%clk 0:00:16]} 29. Qf5+ {[%clk 0:01:32]} 1-0


[Site "https://www.chess.com"]

[Event "Titled Tuesday Blitz January 10 Early 2023"]
[White "Boraso, Alessio"]
[Black "Klose, Eli"]
[WhiteFideId "848077"]
[BlackFideId "16242955"]
[WhiteElo "2316"]
[BlackElo "1519"]
[Result "1-0"]
[Round "08"]
[TimeControl "180+2"]
[Date "2023.01.10"]
[WhiteClock "0:00:12"]
[BlackClock "0:01:43"]

1. e4 {[%clk 0:03:00]}  e6 {[%clk 0:02:59]} 2. d4 {[%clk 0:03:00]}  d5 {[%clk 0:03:00]} 3. e5 {[%clk 0:03:00]}  c5 {[%clk 0:02:59]} 4. c3 {[%clk 0:03:01]}  Bd7 {[%clk 0:02:59]} 5. Nf3 {[%clk 0:03:01]}  Qb6 {[%clk 0:03:00]} 6. Bd3 {[%clk 0:03:00]}  Bb5 {[%clk 0:03:00]} 7. O-O {[%clk 0:02:59]}  Bxd3 {[%clk 0:02:59]} 8. Qxd3 {[%clk 0:03:00]}  Nc6 {[%clk 0:03:00]} 9. dxc5 {[%clk 0:02:51]}  Bxc5 {[%clk 0:02:59]} 10. b4 {[%clk 0:02:52]}  Bf8 {[%clk 0:02:58]} 11. Be3 {[%clk 0:02:18]}  Qc7 {[%clk 0:02:54]} 12. Na3 {[%clk 0:02:19]}  a6 {[%clk 0:02:51]} 13. Bd4 {[%clk 0:02:03]}  Nge7 {[%clk 0:02:47]} 14. b5 {[%clk 0:02:01]}  Nxd4 {[%clk 0:02:46]} 15. cxd4 {[%clk 0:01:56]}  Nf5 {[%clk 0:02:43]} 16. Rac1 {[%clk 0:01:36]}  Qa5 {[%clk 0:02:43]} 17. Rc3 {[%clk 0:01:20]}  Bb4 {[%clk 0:02:38]} 18. Rb3 {[%clk 0:01:21]}  O-O {[%clk 0:02:35]} 19. Rfb1 {[%clk 0:01:19]}  Be7 {[%clk 0:02:32]} 20. R1b2 {[%clk 0:01:03]}  Rfc8 {[%clk 0:02:31]} 21. Nc2 {[%clk 0:00:59]}  h6 {[%clk 0:02:23]} 22. h3 {[%clk 0:00:55]}  Rc4 {[%clk 0:02:22]} 23. bxa6 {[%clk 0:00:46]}  bxa6 {[%clk 0:02:23]} 24. Rb8+ {[%clk 0:00:45]}  Rxb8 {[%clk 0:02:23]} 25. Rxb8+ {[%clk 0:00:46]}  Kh7 {[%clk 0:02:19]} 26. g4 {[%clk 0:00:44]}  Rc3 {[%clk 0:02:19]} 27. Qe2 {[%clk 0:00:38]}  Nh4 {[%clk 0:02:12]} 28. Nxh4 {[%clk 0:00:36]}  Bxh4 {[%clk 0:02:12]} 29. Ne3 {[%clk 0:00:34]}  Qc7 {[%clk 0:02:06]} 30. Qb2 {[%clk 0:00:33]}  Bg5 {[%clk 0:02:02]} 31. Ng2 {[%clk 0:00:28]}  Rc1+ {[%clk 0:01:58]} 32. Kh2 {[%clk 0:00:28]}  Rc2 {[%clk 0:01:59]} 33. Qb1 {[%clk 0:00:27]}  g6 {[%clk 0:01:51]} 34. Rb7 {[%clk 0:00:28]}  Rc1 {[%clk 0:01:47]} 35. Qb4 {[%clk 0:00:12]}  Rc4 {[%clk 0:01:47]} 36. Qb1 {[%clk 0:00:12]}  Rc1 {[%clk 0:01:47]} 37. Qb3 {[%clk 0:00:12]}  Rc3 {[%clk 0:01:45]} 38. Rxc7 {[%clk 0:00:12]}  Rxb3 {[%clk 0:01:43]} 39. axb3 {[%clk 0:00:12]} 1-0


[Site "https://www.chess.com"]

[Event "Titled Tuesday Blitz January 10 Early 2023"]
[White "Baches Garcia, Guillermo"]
[Black "Bove, Alessandro"]
[WhiteFideId "2209764"]
[BlackFideId "814121"]
[WhiteElo "2327"]
[BlackElo "2311"]
[Result "0-1"]
[Round "08"]
[TimeControl "180+2"]
[Date "2023.01.10"]
[WhiteClock "0:00:01"]
[BlackClock "0:00:41"]

1. e4 {[%clk 0:03:00]}  c5 {[%clk 0:02:59]} 2. Nf3 {[%clk 0:03:00]}  d6 {[%clk 0:02:58]} 3. d4 {[%clk 0:03:00]}  cxd4 {[%clk 0:02:59]} 4. Nxd4 {[%clk 0:03:01]}  Nf6 {[%clk 0:03:00]} 5. Nc3 {[%clk 0:03:01]}  g6 {[%clk 0:03:00]} 6. g3 {[%clk 0:03:01]}  Bg7 {[%clk 0:03:00]} 7. Bg2 {[%clk 0:03:01]}  O-O {[%clk 0:03:01]} 8. O-O {[%clk 0:03:01]}  Nc6 {[%clk 0:03:01]} 9. Nde2 {[%clk 0:03:01]}  a6 {[%clk 0:02:59]} 10. a4 {[%clk 0:03:01]}  Be6 {[%clk 0:02:55]} 11. Nd5 {[%clk 0:03:01]}  b5 {[%clk 0:02:29]} 12. axb5 {[%clk 0:02:52]}  axb5 {[%clk 0:02:30]} 13. Rxa8 {[%clk 0:02:52]}  Qxa8 {[%clk 0:02:30]} 14. Nc7 {[%clk 0:02:47]}  Qb7 {[%clk 0:02:17]} 15. Nxe6 {[%clk 0:02:46]}  fxe6 {[%clk 0:02:18]} 16. Nf4 {[%clk 0:02:36]}  e5 {[%clk 0:02:10]} 17. Ne6 {[%clk 0:02:32]}  Rc8 {[%clk 0:02:08]} 18. Nxg7 {[%clk 0:02:25]}  Kxg7 {[%clk 0:02:09]} 19. f4 {[%clk 0:02:15]}  h6 {[%clk 0:02:05]} 20. f5 {[%clk 0:02:07]}  g5 {[%clk 0:02:05]} 21. h4 {[%clk 0:02:05]}  Nh7 {[%clk 0:01:33]} 22. Qh5 {[%clk 0:01:56]}  Rg8 {[%clk 0:01:22]} 23. Qg6+ {[%clk 0:01:33]}  Kh8 {[%clk 0:01:22]} 24. Qxh6 {[%clk 0:01:33]}  gxh4 {[%clk 0:01:22]} 25. Qxh4 {[%clk 0:01:30]}  Nd4 {[%clk 0:01:21]} 26. Rf2 {[%clk 0:01:15]}  Qa7 {[%clk 0:01:17]} 27. Be3 {[%clk 0:01:04]}  Qa1+ {[%clk 0:01:16]} 28. Bf1 {[%clk 0:00:40]}  Qe1 {[%clk 0:01:07]} 29. Bxd4 {[%clk 0:00:20]}  exd4 {[%clk 0:01:08]} 30. Qxe7 {[%clk 0:00:08]}  Rxg3+ {[%clk 0:01:05]} 31. Rg2 {[%clk 0:00:02]}  Qe3+ {[%clk 0:01:05]} 32. Kh1 {[%clk 0:00:02]}  Rh3+ {[%clk 0:01:02]} 33. Rh2 {[%clk 0:00:02]}  Qf3+ {[%clk 0:01:01]} 34. Kg1 {[%clk 0:00:02]}  Rg3+ {[%clk 0:01:00]} 35. Rg2 {[%clk 0:00:01]}  Qe3+ {[%clk 0:01:00]} 36. Kh1 {[%clk 0:00:01]}  Qf3 {[%clk 0:00:41]} 0-1


[Site "https://www.chess.com"]